Cogmind - Beta 13 @@@ ROGUE MODE // 2024.03.22 @ 13:00:30 Player: Dosh Result: Destroyed by S-27 Virus with Autogun Performance ------------- Evolutions (4) 2000 Regions Visited (12) 2400 Robots Destroyed (112) 560 Value Destroyed (4823) 4823 Prototype IDs (33) 660 Alien Tech Used (0) 0 Bonus (1711) 1711 TOTAL SCORE: 12154 Bonus ------- High Alert Combat Kills 103 Follower Combat Kills 932 Entered Garrisons 200 Aligned with FarCom 300 Acquired ECA 300 Friendly Fire -124 Cogmind --------- Core Integrity 0/850 Matter 214/300 Energy 99/100 System Corruption 4% Temperature Cool (0) Movement Core (50) Location -6/Factory Parts ------- > --- POWER (2) -------- (None) > --- PROPULSION (3) --- (None) > --- UTILITY (7) ------ (None) > --- WEAPON (3) ------- (None) > --- INVENTORY (5) ---- Advanced Terrain Scan Processor Core Analyzer Improved Medium Armor Plating Improved Trap Extractor (5/6 Dirty Bomb) Sensor Drone Bay (19/20) Peak State ------------ > --- POWER ------------ Heavy Deuterium Engine Cold Fusion Reactor > --- PROPULSION ------- Wheel Armored Huge Wheel > --- UTILITY ---------- Improved Cooling System Huge Storage Unit Recoil Nullifier Improved Heavy Armor Plating Improved Force Field Hacking Suite > --- WEAPON ----------- Gauss Cannon Antimatter Cannon Mass Driver > --- INVENTORY -------- Armored Huge Wheel Armored Huge Wheel Enhanced Optical Array Advanced Terrain Scanner Advanced Terrain Scan Processor Core Analyzer Armor Integrity Analyzer Recoil Stabilizer Precision Energy Filter Hardened Heavy Armor Plating Improved Medium Armor Plating Layered Medium Armor Plating Medium Reactive Plating Improved Powered Armor Advanced Shield Generator Advanced System Restoration Module Improved Trap Extractor Sensor Drone Bay Flak Gun Powered Hammer CR-A16's Pointy Stick Deploy-a-Sentry [Rating: 78] Favorites ----------- Power Heavy Deuterium Engine Engine Heavy Deuterium Engine Power Core Micro Nuclear Core Reactor Cold Fusion Reactor Propulsion Wheel Wheel Wheel Utility Hacking Suite Device Improved Force Field Storage Huge Storage Unit Hackware Hacking Suite Protection Improved Powered Armor Weapon Gauss Cannon Energy Gun Spread Laser Ballistic Gun Gauss Rifle Ballistic Cannon Gauss Cannon Launcher Grenade Launcher Impact Weapon Powered Hammer Piercing Weapon CR-A16's Pointy Stick Build | -11 -10 -10 -10 -9 -8 -8 -7 -7 -7 -7 -6 -6 ------- Run | Yrd Mat Min Exi Min Mat Gar Fac Low Low Zio Pro Fac Slots Evolved 8 | . . . . . 4 . 2 . . . . 2 Power 1 | . . . . . . . . . . . . 1 Propulsion 1 | . . . . . 1 . . . . . . . Utility 5 | . . . . . 3 . 1 . . . . 1 Weapon 1 | . . . . . . . 1 . . . . . Parts Attached 144 | 6 18 4 . . 22 19 27 12 9 1 9 17 Power 10 | 1 . 1 . . 1 2 3 . . . . 2 Engine 8 | 1 . 1 . . 1 1 3 . . . . 1 Core 1 | . . . . . . 1 . . . . . . Reactor 1 | . . . . . . . . . . . . 1 Propulsion 21 | 2 3 . . . 7 1 5 . . . . 3 Treads . | . . . . . . . . . . . . . Leg . | . . . . . . . . . . . . . Wheel 21 | 2 3 . . . 7 1 5 . . . . 3 Hover . | . . . . . . . . . . . . . Flight . | . . . . . . . . . . . . . Utility 69 | 1 5 3 . . 9 5 15 12 6 . 4 9 Device 41 | . 1 2 . . 2 3 11 9 5 . 3 5 Storage 4 | 1 2 . . . 1 . . . . . . . Processor . | . . . . . . . . . . . . . Hackware 1 | . . . . . 1 . . . . . . . Protection 23 | . 2 1 . . 5 2 4 3 1 . 1 4 Artifact . | . . . . . . . . . . . . . Weapon 44 | 2 10 . . . 5 11 4 . 3 1 5 3 Energy Gun 9 | 2 3 . . . 2 2 . . . . . . Energy Cannon . | . . . . . . . . . . . . . Ballistic Gun 15 | . 4 . . . 3 5 1 . . . . 2 Ballistic Cannon 10 | . 1 . . . . . 3 . 2 1 2 1 Launcher 3 | . 2 . . . . 1 . . . . . . Special Weapon . | . . . . . . . . . . . . . Impact Weapon 6 | . . . . . . 3 . . 1 . 2 . Slashing Weapon . | . . . . . . . . . . . . . Piercing Weapon 1 | . . . . . . . . . . . 1 . Special Melee Weapon . | . . . . . . . . . . . . . Unidentified Prototypes 6 | . . 1 . . . . 1 1 1 . . 2 Parts Lost 35 | . 1 . . . 2 11 3 . . . 1 17 Power 4 | . . . . . . 2 . . . . . 2 Propulsion 7 | . . . . . . 2 1 . . . . 4 Utility 15 | . . . . . 2 5 1 . . . . 7 Weapon 9 | . 1 . . . . 2 1 . . . 1 4 Highest Loss Streak 17 | . 1 . . . 2 4 1 . . . 1 17 To Critical Strikes 1 | . . . . . . . . . . . . 1 Average Slot Usage (%) 90 | . 98 100 100 100 97 82 90 92 83 92 84 84 Engine 8 | . 14 14 14 14 9 6 5 7 7 7 7 10 Wheel 17 | . 28 28 28 28 25 15 13 15 15 15 15 12 Device 15 | . 4 5 14 14 9 16 18 19 18 23 18 18 Storage 8 | . 14 14 14 14 9 9 7 7 7 7 7 6 Hackware 6 | . . . . . 8 9 7 7 7 7 7 6 Protection 8 | . 9 8 . . 17 6 11 10 3 7 6 10 Energy Gun 3 | . 14 14 14 14 2 8 1 . . . . . Ballistic Gun 6 | . 12 14 14 14 15 6 7 7 1 . . . Ballistic Cannon 10 | . . . . . . . 12 15 18 15 19 15 Impact Weapon 1 | . . . . . . 2 . . 3 6 . . Naked Turns 2 | . . . . . . . . . . . . 2 Heaviest Build 168 | 14 57 64 64 64 110 108 143 167 154 141 141 168 Greatest Support 48 | 26 32 32 32 32 48 38 38 38 38 38 38 38 Greatest Overweight (x) 14 | . 1 1 1 1 2 3 14 4 4 3 3 5 Average Overweight (x) 2 | . . 1 1 1 1 2 3 3 3 3 3 3 Largest Inventory Capacity 25 | 8 20 20 20 20 25 25 25 25 25 25 25 25 Average Capacity 23 | 7 15 20 20 20 20 25 25 25 25 25 25 24 Most Carried 25 | 1 15 20 20 20 24 24 25 25 25 25 25 25 Average Carried 21 | . 10 18 19 20 20 19 23 24 24 24 23 22 Final Capacity 25 | 8 20 20 20 20 25 25 25 25 25 25 25 5 Final Carried 25 | 1 15 20 20 20 24 18 25 24 25 25 25 5 Class Distribution -------------------- 56% | Mutant 41% | Tank Dominant Class ---------------- Mutant | -10/Materials Mutant | -10/Mines Mutant | -10/Exiles Mutant | -9/Mines Mutant | -8/Materials Mutant | -8/Garrison Tank | -7/Factory Tank | -7/Lower Caves Tank | -7/Lower Caves Mutant | -7/Zion Tank | -6/Proximity Caves Mutant | -6/Factory Resources | -11 -10 -10 -10 -9 -8 -8 -7 -7 -7 -7 -6 -6 ----------- Run | Yrd Mat Min Exi Min Mat Gar Fac Low Low Zio Pro Fac Matter Collected 6497 | 201 367 74 . . 790 464 1127 409 795 187 1852 231 Remotely . | . . . . . . . . . . . . . Salvage Created 3917 | . 367 105 . . 878 641 849 180 180 124 455 138 Parts 203 | . 30 5 . . 50 39 49 5 7 . 16 2 Haulers Intercepted 6 | . 2 . . . 1 . 1 1 . . . 1 Recyclers Shooed 4 | . . . . . . . 2 . . . . 2 Parts Field Recycled . | . . . . . . . . . . . . . Retrieved Matter . | . . . . . . . . . . . . . Parts Self-Destructed 42 | . . . . . . . . 9 7 . 26 . Prevented 3 | . . . . . . . . . . . 3 . Kills | -11 -10 -10 -10 -9 -8 -8 -7 -7 -7 -7 -6 -6 ------- Run | Yrd Mat Min Exi Min Mat Gar Fac Low Low Zio Pro Fac Combat Hostiles Destroyed 92 | . 11 3 . . 22 18 16 4 3 . 13 2 Guns 60 | . 8 3 . . 22 16 7 2 1 . . 1 Cannons 27 | . . . . . . . 9 2 2 . 13 1 AOE 5 | . 3 . . . . 2 . . . . . . Classes Destroyed 14 | . 5 . . . 3 1 2 . . . 3 . Worker 3 | . . . . . . . 3 . . . . . Hauler 6 | . 2 . . . 1 . 1 1 . . . 1 Recycler 2 | . . . . . . . 2 . . . . . Minesweeper 1 | . . . . . . . . . . . 1 . Mechanic 1 | . . . . . . . . . . . 1 . Operator 3 | . 1 . . . 1 1 . . . . . . Watcher 4 | . 1 . . . 2 . 1 . . . . . Swarmer 12 | . 3 . . . 3 . . . 3 . 3 . Grunt 43 | . 8 3 . . 9 8 4 4 . . 7 . Brawler 4 | . . . . . 1 2 . . . . 1 . Duelist 1 | . . . . . . . . . . . 1 . Sentry 14 | . . . . . 7 1 5 . . . 1 . Hunter 6 | . . . . . 2 1 2 . . . . 1 Programmer 12 | . . . . . . 6 5 . . . . 1 Best Kill Streak 6 | . 4 2 . . 3 6 4 2 3 . 4 1 Combat Bots Only 6 | . 3 2 . . 3 6 4 2 3 . 4 1 Max Kills in Single Turn 4 | . 4 1 . . 1 2 2 1 2 . 2 1 Gunslinging 1 | . . . . . . 1 . . . . . . Exploded 3 | . 3 . . . . 1 . . . . . . Melee . | . . . . . . . . . . . . . Uniques/NPCs Destroyed . | . . . . . . . . . . . . . Combat | -11 -10 -10 -10 -9 -8 -8 -7 -7 -7 -7 -6 -6 -------- Run | Yrd Mat Min Exi Min Mat Gar Fac Low Low Zio Pro Fac Hostile Shots Fired 988 | . 39 14 . . 103 138 195 29 12 . 95 363 Missed 297 | . 6 4 . . 25 40 74 10 4 . 30 104 Damage Taken 8770 | . 584 131 . . 784 1279 838 181 68 . 925 3980 Core 1396 | . 104 29 . . 121 148 59 9 . . 64 862 Absorbed by Shields 1718 | . 34 . . . 289 241 349 122 55 . 371 257 Ignored by Resistances 279 | . . . . . 76 16 37 . . . . 150 Regen/Repaired (Parts) 56 | . 56 . . . . . . . . . . . Core Remaining (%) 69 | 100 . . . 46 . 51 . . . . 81 . Volleys Fired 337 | . 49 8 . . 82 65 64 20 4 . 31 14 Largest 3 | . 2 2 . . 2 2 3 3 3 . 3 3 Hottest 153 | . 95 85 . . 50 120 124 124 124 . 153 145 Shots Fired 752 | . 92 16 . . 164 111 176 60 10 . 87 36 Gun 464 | . 90 16 . . 164 101 66 20 3 . . 4 Cannon 276 | . . . . . . . 110 40 7 . 87 32 Launcher 12 | . 2 . . . . 10 . . . . . . Special . | . . . . . . . . . . . . . Kinetic 630 | . 41 8 . . 151 71 166 60 10 . 87 36 Thermal 104 | . 43 8 . . 13 30 10 . . . . . Explosive 12 | . 2 . . . . 10 . . . . . . Electromagnetic 6 | . 6 . . . . . . . . . . . Robot Hit Streak 24 | . 12 17 . . 22 24 12 5 1 . 8 6 Robot Miss Streak 11 | . 9 2 . . 11 4 5 3 6 . 4 4 Penetration Max 1 | . . . . . . . 1 . . . 1 1 Secondary Targets 10 | . 1 1 . . 4 4 . . . . . . Max Gunslinging Chain 1 | . 1 1 . . 1 1 . . . . . . Shots Hit Robots 481 | . 63 14 . . 118 83 96 26 5 3 53 20 Core Hits 250 | . 46 13 . . 59 42 39 12 3 . 28 8 Critical Kills . | . . . . . . . . . . . . . Critical Parts Destroyed 6 | . 1 . . . 1 2 2 . . . . . Critical Strikes 32 | . 1 . . . 2 3 8 6 1 . 10 1 Burn 2 | . . . . . 1 1 . . . . . . Destroy 6 | . 1 . . . 1 2 2 . . . . . Blast 24 | . . . . . . . 6 6 1 . 10 1 Melee Attacks 23 | . . . . . . 7 . . 10 3 3 . Impact 22 | . . . . . . 7 . . 10 3 2 . Slashing . | . . . . . . . . . . . . . Piercing 1 | . . . . . . . . . . . 1 . Sneak Attacks 3 | . . . . . . 1 . . . . 2 . Combat Hostiles . | . . . . . . . . . . . . . Follow-up Attacks . | . . . . . . . . . . . . . Damage Inflicted 12056 | . 984 213 . . 2149 2185 2571 720 281 196 1848 909 Guns 5973 | . 829 213 . . 2125 1606 938 190 22 . . 50 Cannons 4745 | . . . . . . . 1623 530 51 . 1724 817 Explosions 657 | . 155 . . . . 502 . . . . . . Melee 605 | . . . . . . 77 . . 208 196 124 . Ramming 76 | . . . . . 24 . 10 . . . . 42 Kinetic 9195 | . 302 85 . . 1867 1165 2392 720 73 . 1724 867 Thermal 1452 | . 456 128 . . 258 441 169 . . . . . Explosive 657 | . 155 . . . . 502 . . . . . . Electromagnetic 71 | . 71 . . . . . . . . . . . Impact 605 | . . . . . . 77 . . 208 196 124 . Slashing . | . . . . . . . . . . . . . Piercing . | . . . . . . . . . . . . . Highest Corruption 7 | . . . . . 3 7 7 . . . . 4 Average Corruption 3 | . . . . . 2 4 3 . . . . 2 Corruption Purged 10 | . . . . . . . 10 . . . . . Corruption Blocked . | . . . . . . . . . . . . . Effects 39 | . . . . . . 27 11 . . . . 1 Message Errors 8 | . . . . . . 6 2 . . . . . Matter Fused 8 | . . . . . . 6 2 . . . . . Heat Flow Errors 5 | . . . . . . 4 1 . . . . . Energy Discharges 3 | . . . . . . 2 1 . . . . . Parts Rejected 1 | . . . . . . 1 . . . . . . Data Loss (minor) 5 | . . . . . . 3 1 . . . . 1 Misfires 8 | . . . . . . 4 4 . . . . . Alerts 1 | . . . . . . 1 . . . . . . Overload Shots 5 | . . . . . . 5 . . . . . . Effects 1 | . . . . . . 1 . . . . . . Energy Bleed 1 | . . . . . . 1 . . . . . . Overflow Damage 626 | . . . . . . 67 153 . 73 116 116 101 Projectiles 294 | . . . . . . . 153 . . . 52 89 Explosions . | . . . . . . . . . . . . . Melee 332 | . . . . . . 67 . . 73 116 64 12 Knockbacks 38 | . . . . . . . 14 4 1 . 13 6 Impact 3 | . . . . . . . . . 1 . 1 1 Kinetic 35 | . . . . . . . 14 4 . . 12 5 Secondary . | . . . . . . . . . . . . . Self-Inflicted Damage 117 | . . . . . 12 36 48 . . . . 21 Shots 3 | . . . . . . 1 2 . . . . . Rammed 3 | . . . . . 1 . 1 . . . . 1 Targets Rammed 3 | . . . . . 1 . 1 . . . . 1 Kicked . | . . . . . . . . . . . . . Crushed . | . . . . . . . . . . . . . Highest Temperature 515 | . 279 270 . . 23 236 515 313 . . 67 8 Average Temperature 93 | . 93 117 . . 7 100 107 129 . . 12 4 Received Heat Transfer 1885 | . 191 72 . . 356 391 194 96 . . 203 382 Effects 10 | . 2 . . . . . 7 1 . . . . Shutdowns 1 | . . . . . . . 1 . . . . . Energy Bleed 4 | . . . . . . . 3 1 . . . . Interference 5 | . 2 . . . . . 3 . . . . . Siege Activations . | . . . . . . . . . . . . . Robots Corrupted . | . . . . . . . . . . . . . Combat Hostiles . | . . . . . . . . . . . . . Parts Fried . | . . . . . . . . . . . . . Impact Corruptions 16 | . . . . . . 2 . . 3 8 2 1 Robots Melted . | . . . . . . . . . . . . . Combat Hostiles . | . . . . . . . . . . . . . Parts Melted 4 | . . . . . . 1 . . . . 3 . Heat Transferred 2466 | . 658 165 . . 555 792 296 . . . . . Parts Sabotaged . | . . . . . . . . . . . . . Parts Stolen . | . . . . . . . . . . . . . Parts Stripped . | . . . . . . . . . . . . . Power Chain Reactions . | . . . . . . . . . . . . . Alert | -11 -10 -10 -10 -9 -8 -8 -7 -7 -7 -7 -6 -6 ------- Run | Yrd Mat Min Exi Min Mat Gar Fac Low Low Zio Pro Fac Peak Influence 497 | . 299 178 . . 372 497 421 . . . . 366 Initial 260 | . . 72 . . . 67 260 . . . . 88 Average 151 | . 66 96 . . 166 344 142 . . . . 128 Maximum Alert Level 2 | . 1 . . . 1 2 2 . . . . 1 Low Security (%) 67 | 100 94 100 . 100 59 29 62 . . . . 80 Level 1 23 | . 5 . . . 40 15 33 . . . . 19 Level 2 8 | . . . . . . 54 3 . . . . . Level 3 . | . . . . . . . . . . . . . Level 4 . | . . . . . . . . . . . . . Level 5 . | . . . . . . . . . . . . . High Security . | . . . . . . . . . . . . . Max Security . | . . . . . . . . . . . . . Squads Dispatched 21 | . 3 . . . 5 . 8 . . . 1 4 Investigation 7 | . 2 . . . 2 . 2 . . . . 1 Extermination 5 | . . . . . . . 4 . . . . 1 Reinforcement 7 | . 1 . . . 2 . 2 . . . . 2 Assault 1 | . . . . . . . . . . . 1 . Garrison 1 | . . . . . 1 . . . . . . . Intercept . | . . . . . . . . . . . . . Searches Triggered . | . . . . . . . . . . . . . Construction Impeded 1 | . . . . . . . . . . . . 1 Haulers Reinforced 1 | . . . . . . . . . . . . 1 Active Scanning Responses . | . . . . . . . . . . . . . Cargo Convoy Interrupts 1 | . . . . . . . . . . . . 1 Stealth | -11 -10 -10 -10 -9 -8 -8 -7 -7 -7 -7 -6 -6 --------- Run | Yrd Mat Min Exi Min Mat Gar Fac Low Low Zio Pro Fac Distress Signals 8 | . 1 . . . 3 . 1 . . . . 3 Communications Jammed . | . . . . . . . . . . . . . Distress Signals . | . . . . . . . . . . . . . Times Spotted 193 | . 21 4 . . 43 18 22 12 3 . 36 34 Peak Tracking Total 16 | . 4 2 . . 5 5 2 5 3 . 10 16 Tactical Retreats 11 | . . . . . 3 1 . 5 . . 2 . Traps | -11 -10 -10 -10 -9 -8 -8 -7 -7 -7 -7 -6 -6 ------- Run | Yrd Mat Min Exi Min Mat Gar Fac Low Low Zio Pro Fac Traps Triggered 11 | . . . . . 4 5 2 . . . . . Indirectly . | . . . . . . . . . . . . . Trap Hack Attempts . | . . . . . . . . . . . . . Triggered . | . . . . . . . . . . . . . Disarmed . | . . . . . . . . . . . . . Reprogrammed 6 | . . . . . 6 . . . . . . . Reused 10 | . . . . . 6 . . . . . 4 . Traps Extracted 3 | . . . . . . . . . . . 3 . Installed 9 | . . . . . 1 . . . . . 8 . Triggered 10 | . . . . . 6 . . . . . 4 . Most Traps Carried 5 | . . 4 4 1 1 . . . . . 5 5 Machines | -11 -10 -10 -10 -9 -8 -8 -7 -7 -7 -7 -6 -6 ---------- Run | Yrd Mat Min Exi Min Mat Gar Fac Low Low Zio Pro Fac Machines Disabled 21 | . . . . . . 2 9 . . . . 10 Max in Single Turn 2 | . . . . . . 1 2 . . . . . Garrison Access 1 | . . . . . . . . . . . . 1 Garrison Relay 1 | . . . . . . 1 . . . . . . Phase Generator 1 | . . . . . . 1 . . . . . . Machines Repaired . | . . . . . . . . . . . . . Machines Dismantled . | . . . . . . . . . . . . . Machines Sabotaged . | . . . . . . . . . . . . . Overloaded Fab Kills . | . . . . . . . . . . . . . Hacking | -11 -10 -10 -10 -9 -8 -8 -7 -7 -7 -7 -6 -6 --------- Run | Yrd Mat Min Exi Min Mat Gar Fac Low Low Zio Pro Fac Machines Accessed 43 | . 8 1 2 . 10 2 11 . 3 1 . 5 Terminals 25 | . 5 . . . 9 2 6 . . . . 3 Fabricators 3 | . . . . . . . 2 . . . . 1 Repair Stations 2 | . 1 . . . . . 1 . . . . . Recycling Units 3 | . 2 . . . . . 1 . . . . . Scanalyzers 1 | . . . . . . . 1 . . . . . Garrison Access 2 | . . . . . 1 . . . . . . 1 Total Hacks 113 | . 16 1 2 . 29 7 30 . 9 4 . 15 Successful 63 | . 7 1 2 . 16 1 17 . 9 4 . 6 Failed 48 | . 8 . . . 12 6 13 . . . . 9 Catastrophic 5 | . . . . . 4 1 . . . . . . Database Lockouts 2 | . 1 . . . 1 . . . . . . . Manual 50 | . 9 . 1 . 21 2 10 . . 1 . 6 Terminals 73 | . 10 . . . 28 7 19 . . . . 9 Fabricators 7 | . . . . . . . 4 . . . . 3 Repair Stations 6 | . 3 . . . . . 3 . . . . . Recycling Units 5 | . 3 . . . . . 2 . . . . . Scanalyzers 2 | . . . . . . . 2 . . . . . Garrison Access 4 | . . . . . 1 . . . . . . 3 Terminal Hacks 38 | . 3 1 2 . 10 1 6 . 9 4 . 2 Record 8 | . . . 1 . . . . . 7 . . . Part Schematic 5 | . . . . . . . 1 . . 4 . . Robot Analysis 2 | . 1 . . . 1 . . . . . . . Prototype ID Bank 1 | . . . . . 1 . . . . . . . Open Door 3 | . . 1 . . . . . . 2 . . . Branch Access Points 1 | . . . . . . . 1 . . . . . Terminal Index 1 | . . . . . . . 1 . . . . . Alert Level 2 | . . . . . 1 . 1 . . . . . Unreport Threat 4 | . . . . . 2 . 2 . . . . . Locate Traps 4 | . 2 . . . 2 . . . . . . . Reprogram Traps 2 | . . . . . 1 . . . . . . 1 Recall Investigation 1 | . . . . . . . . . . . . 1 Hauler Manifests 1 | . . . . . 1 . . . . . . . Zone Layout 1 | . . . . . 1 . . . . . . . Patrol Navigation 1 | . . . . . . 1 . . . . . . Derelict Proto ID Bank 1 | . . . 1 . . . . . . . . . Fabricator Hacks 4 | . . . . . . . 3 . . . . 1 Network Status 1 | . . . . . . . 1 . . . . . Load Schematic 1 | . . . . . . . 1 . . . . . Build 2 | . . . . . . . 1 . . . . 1 Repair Station Hacks 3 | . 2 . . . . . 1 . . . . . Scan Component 2 | . 1 . . . . . 1 . . . . . Repair 1 | . 1 . . . . . . . . . . . Recycling Unit Hacks 2 | . . . . . . . 2 . . . . . Process 1 | . . . . . . . 1 . . . . . Retrieve Matter 1 | . . . . . . . 1 . . . . . Scanalyzer 2 | . . . . . . . 2 . . . . . Insert Component 1 | . . . . . . . 1 . . . . . Analyze 1 | . . . . . . . 1 . . . . . Garrison Access Hacks 2 | . . . . . 1 . . . . . . 1 Unlock Access 1 | . . . . . 1 . . . . . . . Seal Access 1 | . . . . . . . . . . . . 1 Unauthorized Hacks 12 | . 2 . . . 5 . 3 . . . . 2 Terminals 10 | . . . . . 5 . 3 . . . . 2 Assimilate 3 | . . . . . 3 . . . . . . . Botnet 5 | . . . . . 1 . 2 . . . . 2 Operators 2 | . . . . . 1 . 1 . . . . . Fabricators . | . . . . . . . . . . . . . Repair Stations . | . . . . . . . . . . . . . Recycling Units 2 | . 2 . . . . . . . . . . . Tunnel 2 | . 2 . . . . . . . . . . . Scanalyzers . | . . . . . . . . . . . . . Garrison Access . | . . . . . . . . . . . . . Data Cores Recovered . | . . . . . . . . . . . . . Used . | . . . . . . . . . . . . . Hacking Detections 28 | . 6 . . . 7 2 9 . . . . 4 Full Trace Events 5 | . . . . . 2 . 2 . . . . 1 Feedback Events . | . . . . . . . . . . . . . Feedback Blocked . | . . . . . . . . . . . . . Robot Schematics Acquired . | . . . . . . . . . . . . . Robots Built . | . . . . . . . . . . . . . Authchips . | . . . . . . . . . . . . . Time . | . . . . . . . . . . . . . Total Robot Build Rating . | . . . . . . . . . . . . . Part Schematics Acquired 6 | . . . . . . . 2 . . 4 . . Parts Built 3 | . . . . . . . 2 . . . . 1 Authchips . | . . . . . . . . . . . . . Time 160 | . . . . . . . 84 . . . . 76 Total Part Build Rating 13 | . . . . . . . 8 . . . . 5 Parts Repaired 1 | . 1 . . . . . . . . . . . Time 26 | . 26 . . . . . . . . . . . Parts Recycled . | . . . . . . . . . . . . . Recycled Matter 256 | . . . . . . . 256 . . . . . Retrieved Matter 256 | . . . . . . . 256 . . . . . Retrieved Components . | . . . . . . . . . . . . . Parts Scanalyzed 1 | . . . . . . . 1 . . . . . Part Schematics Acquired 1 | . . . . . . . 1 . . . . . Parts Damaged 1 | . . . . . . . 1 . . . . . Bothacking | -11 -10 -10 -10 -9 -8 -8 -7 -7 -7 -7 -6 -6 ------------ Run | Yrd Mat Min Exi Min Mat Gar Fac Low Low Zio Pro Fac Used RIF Installer . | . . . . . . . . . . . . . Robots Hacked . | . . . . . . . . . . . . . Non-combat . | . . . . . . . . . . . . . Combat . | . . . . . . . . . . . . . Robot Hacks Applied . | . . . . . . . . . . . . . Relay Couplers Released 9 | . . . . . . 5 4 . . . . . Machine Destruction 5 | . . . . . . 5 . . . . . . Programmers 4 | . . . . . . . 4 . . . . . Fabnet Peak Effective % . | . . . . . . . . . . . . . Robots Rewired 2 | . . . . . . . . . . . 2 . Allies Hacked . | . . . . . . . . . . . . . Hacks Repelled . | . . . . . . . . . . . . . Allies | -11 -10 -10 -10 -9 -8 -8 -7 -7 -7 -7 -6 -6 -------- Run | Yrd Mat Min Exi Min Mat Gar Fac Low Low Zio Pro Fac Total Allies 15 | . . 2 . 1 1 . . . . 8 2 1 Largest Group 8 | . . 2 2 1 1 1 . . . 8 8 3 Highest-Rated Group 192 | . . 42 42 31 26 26 . . . 192 192 148 Highest-Rated Ally 99 | . . 31 31 31 26 26 . . . 31 31 99 Total Orders 12 | . . . . 2 . 4 . 4 2 . . . STAY 2 | . . . . . . 2 . . . . . . FOLLOW 2 | . . . . . . 2 . . . . . . EXPLORE 3 | . . . . 1 . . . 1 1 . . . RETURN 5 | . . . . 1 . . . 3 1 . . . Ally Attacks 104 | . . 4 . . . . . 6 . . 70 24 Total Damage 4232 | . . 62 . . . . . 329 . . 1658 2183 Kills 30 | . . 1 . . . . . 3 . . 12 14 Allies Corrupted 1 | . . . . . . . . . . . . 1 Allies Melted . | . . . . . . . . . . . . . Turrets Deployed 3 | . . . . . . . . 1 . . 1 1 Intel | -11 -10 -10 -10 -9 -8 -8 -7 -7 -7 -7 -6 -6 ------- Run | Yrd Mat Min Exi Min Mat Gar Fac Low Low Zio Pro Fac Robot Analysis Total 2 | . 1 . . . 1 . . . . . . . Derelict Logs Recovered 7 | . . 1 . 1 . . . 1 1 1 2 . Drone Launches 8 | . . 1 . . . . . 6 1 . . . Drone Recoveries 7 | . . . . 1 . . . 4 2 . . . Exploration | -11 -10 -10 -10 -9 -8 -8 -7 -7 -7 -7 -6 -6 ------------- Run | Yrd Mat Min Exi Min Mat Gar Fac Low Low Zio Pro Fac Turns Passed 16086 | 45 1207 531 330 395 1854 1093 2693 1388 2294 1368 2227 661 Spaces Moved 10290 | 40 879 414 284 271 1159 636 1484 896 1593 849 1403 382 Core 9 | 1 . . . . . . . . . . . 8 Treads . | . . . . . . . . . . . . . Legs . | . . . . . . . . . . . . . Wheels 10281 | 39 879 414 284 271 1159 636 1484 896 1593 849 1403 374 Hover . | . . . . . . . . . . . . . Flight . | . . . . . . . . . . . . . Fastest Speed 50 | 50 90 115 115 115 101 120 135 135 135 135 135 50 Average Speed 129 | 88 106 115 115 115 104 127 145 140 138 135 135 148 Slowest Speed 290 | 90 115 115 115 115 120 145 290 150 150 135 135 175 Overloaded Moves . | . . . . . . . . . . . . . Propulsion Burnouts . | . . . . . . . . . . . . . Robots Hopped 1 | . . . . . . . . . 1 . . . Cave-ins Triggered . | . . . . . . . . . . . . . Exploration Rate (%) 70 | 3 99 76 72 96 84 84 22 95 98 82 98 13 Regions Visited 12 Branch Regions 7 Pre-discovered Areas 6 | . 2 . 1 1 . . . 1 1 . . . Known Exits Taken 5 | . . . . 1 1 . 1 1 1 . . . Unknown Exits Taken 6 | 1 1 1 1 . . . . . . 1 1 . Scrap Searched 19 | . . 2 . 2 . . . 3 5 3 4 . Spaces Dug 53 | . . . . . . . 49 1 2 . . 1 Terrain Destroyed 174 | . 17 . . . . 11 75 21 5 . 38 7 Melee 1 | . . . . . . . . . 1 . . . Projectile 105 | . . . . . . . 35 21 4 . 38 7 AOE 68 | . 17 . . . . 11 40 . . . . . Terrain Rammed . | . . . . . . . . . . . . . Walls Destroyed . | . . . . . . . . . . . . . Machines Disabled . | . . . . . . . . . . . . . Actions | -11 -10 -10 -10 -9 -8 -8 -7 -7 -7 -7 -6 -6 --------- Run | Yrd Mat Min Exi Min Mat Gar Fac Low Low Zio Pro Fac Total 12338 | 46 1057 451 289 354 1643 795 1892 981 1650 1067 1665 448 Wait 1319 | . 93 20 . 84 348 26 277 42 25 207 175 22 Move 10277 | 39 878 413 283 270 1159 635 1483 895 1590 848 1402 382 Hop 1 | . . . . . . . . . 1 . . . Pick Up 75 | 1 11 5 3 . 13 2 20 4 2 4 7 3 Fast Attach 42 | 6 7 . . . 4 4 10 3 3 . . 5 Attach 32 | . . . . . 5 7 6 . 1 . 3 10 Detach 12 | . 2 . . . . . 2 . 1 . 3 4 Swap 70 | . 11 4 . . 13 8 11 9 5 1 6 2 Drop 79 | . 6 1 3 . 17 . 18 8 8 4 9 5 Fire 337 | . 49 8 . . 82 65 64 20 4 . 31 14 Melee 23 | . . . . . . 7 . . 10 3 3 . Ram 3 | . . . . . 1 . 1 . . . . 1 Kick . | . . . . . . . . . . . . . Crush . | . . . . . . . . . . . . . Escape Stasis 40 | . . . . . . 40 . . . . . . Rewire 19 | . . . . . . 1 . . . . 18 . Trap 9 | . . . . . 1 . . . . . 8 . Miscellaneous . | . . . . . . . . . . . . . Route ------- -11/Scrapyard -10/Materials (discovered 5 exits: [*Mat x3] / *Min x2) -10/Mines (discovered 2 exits: [*Mat] / *Exi) -10/Exiles (discovered 2 exits: [*Min x2]) -9/Mines (discovered 2 exits: *Mat x2) -8/Materials (discovered 4 exits: *Fac x3 / Gar) -8/Garrison (discovered 3 exits: *Fac x3) -7/Factory (discovered 3 exits: *Sto / *Low x2) -7/Lower Caves -7/Lower Caves (discovered 2 exits: *Fac / *Zio) -7/Zion -6/Proximity Caves -6/Factory (discovered 1 exit: Fac) History --------- Turn | Location | Event 23 | -11/Scrapyard | Discovered new exit (range 15) 46 | -11/Scrapyard | Entered Materials 206 | -10/Materials | Discovered new exit (range 16) 314 | -10/Materials | Build established: Mutant 601 | -10/Materials | Discovered new exit (range 8) 653 | -10/Materials | Discovered new exit (range 8) 721 | -10/Materials | Central database locked down 744 | -10/Materials | Discovered new exit (range 11) 973 | -10/Materials | Discovered new exit (range 12) 1111 | -10/Materials | Repaired Assault Rifle 1253 | -10/Materials | Entered Mines 1264 | -10/Mines | Core integrity fell below 50% 1299 | -10/Mines | Deemed a non-threat by the Exiles lab entrance 1300 | -10/Mines | Discovered new exit (range 5) 1393 | -10/Mines | Found a hidden stash of uninstalled traps 1486 | -10/Mines | Learned Materials security intel 1546 | -10/Mines | Found the Drone Emporium 1551 | -10/Mines | Found Prototype Device 1556 | -10/Mines | Identified Sensor Drone Bay 1600 | -10/Mines | Discovered new exit (range 10) 1784 | -10/Mines | Entered Exiles 1784 | -10/Exiles | Accompanied by 3 allies 1805 | -10/Exiles | Discovered new exit (range 17) 1813 | -10/Exiles | Met 8R-AWN 1814 | -10/Exiles | Led the pair of lost Derelicts to a safe place 1832 | -10/Exiles | Met EX-HEX 1863 | -10/Exiles | Met EX-BIN 1879 | -10/Exiles | Aligned with FarCom system 1880 | -10/Exiles | Given EX-Vault access code 1906 | -10/Exiles | Opened EX-Vault 1916 | -10/Exiles | Found Deploy-a-Sentry 1918 | -10/Exiles | Found Deploy-a-Sentry 1920 | -10/Exiles | Found Deploy-a-Sentry 1944 | -10/Exiles | Warned to stay clear of 0b10 Research branches 1979 | -10/Exiles | Met EX-DEC 1983 | -10/Exiles | Learned location of Zion (-7) 2105 | -10/Exiles | Discovered new exit (range 10) 2114 | -10/Exiles | Left Exiles lab with Deploy-a-Sentry 2114 | -10/Exiles | Entered Mines 2114 | -9/Mines | Accompanied by 1 ally 2128 | -9/Mines | Discovered new exit (range 17) 2130 | -9/Mines | Identified exit to Materials 2134 | -9/Mines | Discovered exit to Materials (range 16) 2194 | -9/Mines | Received a Mining Laser from a helpful Derelict 2509 | -9/Mines | Entered Materials 2509 | -8/Materials | Evolved 4 slots: Propulsion x1, Utility x3 3408 | -8/Materials | Central database locked down 3604 | -8/Materials | Discovered new exit (range 4) 3732 | -8/Materials | Discovered new exit (range 16) 3967 | -8/Materials | Discovered new exit (range 3) 4352 | -8/Materials | Garrison activated, responded to threat 4363 | -8/Materials | Identified exit to Garrison 4363 | -8/Materials | Entered Garrison 4363 | -8/Garrison | Accompanied by 1 ally 4490 | -8/Garrison | Triggered checkpoint 4565 | -8/Garrison | Garrison Relay disabled 4648 | -8/Garrison | Triggered checkpoint 4720 | -8/Garrison | Triggered checkpoint 4763 | -8/Garrison | Triggered checkpoint 4776 | -8/Garrison | Triggered checkpoint 4820 | -8/Garrison | Lost 3 parts (2u1w) 4847 | -8/Garrison | P-60 Hacker assimilated allied Administrator 3a 4941 | -8/Garrison | Met a derelict Sapper fleeing the area 4945 | -8/Garrison | Phase Generator disabled 4951 | -8/Garrison | Discovered new exit (range 14) 5044 | -8/Garrison | Discovered new exit (range 15) 5166 | -8/Garrison | Lost 4 parts (2n1u1w) 5350 | -8/Garrison | Spotted B-75 Beast 5441 | -8/Garrison | Discovered new exit (range 6) 5456 | -8/Garrison | Entered Factory 5456 | -7/Factory | Evolved 2 slots: Utility x1, Weapon x1 5586 | -7/Factory | Identified exit to Storage 5586 | -7/Factory | Identified exit to Lower Caves 5755 | -7/Factory | Build established: Tank 7517 | -7/Factory | Fabricated Arm. Huge Wheel? 7578 | -7/Factory | Build established: Scavenger-Tank 7906 | -7/Factory | Build established: Tank 8149 | -7/Factory | Entered Lower Caves 8181 | -7/Lower Caves | Met a Warlord Commander 8182 | -7/Lower Caves | Learned location of Warlord (-4) 8183 | -7/Lower Caves | Warlord Commander delivered Encrypted Comm Array 8405 | -7/Lower Caves | DAS Turret deployed 8458 | -7/Lower Caves | Found Imp. Powered Armor 9159 | -7/Lower Caves | Encountered a Warlord checkpoint 9269 | -7/Lower Caves | Discovered new exit (range 15) 9305 | -7/Lower Caves | Identified exit to Lower Caves 9316 | -7/Lower Caves | Learned 8 Factory zone layouts 9537 | -7/Lower Caves | Entered another Lower Caves area 9537 | -7/Lower Caves | Accompanied by 1 ally 9539 | -7/Lower Caves | Discovered new exit (range 11) 9689 | -7/Lower Caves | Learned location of Extension (-4) 9689 | -7/Lower Caves | Learned location of 1 exit from Research 9689 | -7/Lower Caves | Learned 8 Research zone layouts 9689 | -7/Lower Caves | Learned Factory trap positions 9689 | -7/Lower Caves | Learned Armory emergency access door positions 9689 | -7/Lower Caves | Learned Factory garrison access intel 9877 | -7/Lower Caves | Discovered new exit (range 122) 10020 | -7/Lower Caves | Learned Factory security intel 10352 | -7/Lower Caves | Encountered a Warlord checkpoint 10454 | -7/Lower Caves | Identified exit to Zion 10538 | -7/Lower Caves | Found Prototype Device 10538 | -7/Lower Caves | Identified Heart of Steel 11109 | -7/Lower Caves | Build established: Mutant 11831 | -7/Lower Caves | Entered Zion 11991 | -7/Zion | Discovered new exit (range 12) 12126 | -7/Zion | Given A8's code to call for help 12159 | -7/Zion | Found Prototype Device 12190 | -7/Zion | Learned Factory trap positions 12208 | -7/Zion | Identified Bomb Factory No. 2 12342 | -7/Zion | Learned Factory recycling unit intel 12505 | -7/Zion | Gained Derelict followers 12573 | -7/Zion | Received a visual enhancement algorithm 13024 | -7/Zion | Found CR-A16's Pointy Stick 13141 | -7/Zion | Gained Derelict followers 13199 | -7/Zion | Entered Proximity Caves 13199 | -6/Proximity Caves | Accompanied by 8 allies 13354 | -6/Proximity Caves | Build established: Tank 13395 | -6/Proximity Caves | Received a Behemoth hack from an annoying Tinkerer 13561 | -6/Proximity Caves | Learned 4 Factory zone layouts 13576 | -6/Proximity Caves | Lost 3 allies 13673 | -6/Proximity Caves | Spotted B-75 Beast 13710 | -6/Proximity Caves | Allies destroyed B-75 Beast 13956 | -6/Proximity Caves | Learned Factory garrison access intel 13966 | -6/Proximity Caves | Discovered new exit (range 12) 14052 | -6/Proximity Caves | Attracted the attention of an 0b10 checkpoint 14430 | -6/Proximity Caves | Attracted the attention of an 0b10 outpost 14567 | -6/Proximity Caves | DAS Turret deployed 14859 | -6/Proximity Caves | Build established: Mutant 15426 | -6/Proximity Caves | Entered Factory 15426 | -6/Factory | Accompanied by 2 allies 15426 | -6/Factory | Evolved 2 slots: Power x1, Utility x1 15427 | -6/Factory | Identified exit to Factory 15428 | -6/Factory | Loaded intel: 98 trap records 15429 | -6/Factory | Heart of Steel transformed into Warbot 15430 | -6/Factory | Loaded intel: 6 recycling unit locations 15431 | -6/Factory | Loaded intel: 4 garrison access locations 15716 | -6/Factory | Fabricated Antimatter Cannon (x1) 15998 | -6/Factory | Cargo convoy interrupted 16002 | -6/Factory | DAS Turret deployed 16057 | -6/Factory | Lost 3 allies 16074 | -6/Factory | Core integrity fell below 50% 16083 | -6/Factory | Core integrity fell below 20% 16087 | -6/Factory | Destroyed by S-27 Virus with Autogun Last Messages --------------- 16078_ M-28 Smith repairs Com. Wheel. 16079_ R-10 Processor collects Weapon Cycler. 16079_ Penetrated by Slug. 16079_ K-01 Serf collects debris. 16081_ R-10 Processor collects Med. Matter Pod. 16082_ R-10 Processor collects Prototype Energy Cannon. 16082_ Penetrated by Slug. 16082_ Arm. Huge Wheel destroyed. 16082_ Penetrated by Slug. 16083_ Dropped Huge Storage Unit. 16083_ K-01 Serf collects debris. 16084_ U-05 Engineer lays Concrete. 16084_ Penetrated by Slug. 16085_ Slug penetrates H-66 Slayer. 16085_ K-01 Serf collects debris. 16085_ U-05 Engineer builds a Wall. 16085_ Hacking Suite destroyed. 16086_ U-05 Engineer destroyed. 16086_ M-28 Smith repairs Welding Torch. 16087_ K-01 Serf collects debris. Map ----- +----------------------------------------------------+ | ????????????????????? ????????????????????????? | | ????????????????????? ?????????????????????????? | | ????????????????????? *?????????????????????????? | | ????????????????????? ?????????????????????????? | | ????????????????????? ??????????????????????????? | | ????????????#?????###"####???????????????????????? | | ????????????? ????# +??? ?????????#####???? | | ????????????# ????# #??? #? ??# ???? | | ????????????# ????" %##?? # ??+ ???? | | ????????????# ##### "#?? # #?# ???? | | ????????????+ %% "#? # #?# ? ?? | | ????????????# % % "# # #?# """ "" | | ????????????# !%!= "# # #?# """ "" | | ?############+##% %=!=!u#" # #?# """ "" | | ?# ## =u]]%= ## # ### | | ?# #; %% ][%#" # + """ "" | | ?# /R ]*=!#" # #?# """ "" | | ?# %#%% =] =m " # #?# """ "" | | ?# ##u %k%kg # # #?# | | ?# ## mk%hgggk;###+### ####+####### | | ?# #= % h s p | | ?# ##k h ss | | ?# + % uh | | ?# ## % = [! * | | ?# ## !%=[!/! %= | | ?# ## Ru @*!!!!############+###### | | ?######+######## % !/!#?????# | | ????# ! #?????# ! | | ???? % ;#????# | | ??? k # ??# | | ? k u # """ # | | ?? ? #?""" # | | ?????####### #?""" # ! | | ???????????# R #?? ?# !! | | ???????????# % A #?????# !! | | ???????????# % +?????# | | ???????????# #?????# | | ???????????# % #?????# | | ???????????# ^ ^^#?????############# | | ???????????# ########?????????????????? | | ???????????# # ]?????????????????????? | | ???????????# # ?????????????????????? | | ????????????? ??????????????????????? | | ??????????????? = ??????????????????????????? | | ?????????????????????????????????????????????????? | | ?????????????????????????????????????????????????? | | ?????????????????????????????????????????????????? | | ?????????????????????????????????????????????????? | | ?????????????????????????????????????????????????? | | ?????????????????????????????????????????????????? | +----------------------------------------------------+ Best States ------------- Heat Dissipation 64 Coolant Potential 80 Energy Generation 30 Energy Capacity 500 Matter Stores 300 Matter Capacity 300 Sight Range 16 Terrain Scan Density 10 Armor Coverage 625 Resistance: KI 30 Resistance: TH 10 Propulsion Shielding 33 Evasion (%) 42 Recoil Reduction 6 Offensive Hacking 10 Trap Extractor Capacity 6 Item Schematics ----------------- Remote Force Field | -7/Factory | Hacked Arm. Huge Wheel | -7/Factory | Scanalyzed Hvy. Riot Gun | -7/Zion | Free Battle Rifle | -7/Zion | Free Battle Cannon | -7/Zion | Free Enh. Flamer | -7/Zion | Free Robot Schematics ------------------ None Fabricated ------------ Arm. Huge Wheel | x2 | -7/Factory Antimatter Cannon | x1 | -6/Factory | Preloaded Alien Tech Used ----------------- None Achievements -------------- None Challenges ------------ None Game ------ Seed BlastBombardmentBiocell Manual? 0 Play Time 01:31:26 Cumulative 300.9 hours Start 2024.03.22 @ 07:21:25 End 2024.03.22 @ 13:00:30 Sessions 3 Manual Loads 0 Difficulty Rogue Special Mode None Game No. 200 Rogue 200 Adventurer 0 Explorer 0 Win Type - Total 14 Types 9/1/1/1/1/0/0/1/0 Lore% 72 Gallery% 82 Achievement% 72 Wizard Run 0 Options --------- Layout 0 ASCII 0 Keyboard 1 Movement Numpad Keybinds 0 Fullscreen 2 Font 18/SmallcapsGlow Map View 76x50 Zoom Use 0% Tactical HUD 1 Map Filters NONE Filters NONE Steam 1 RUN: 57afde6c-be60-475d-b48b-13a474c25026